bitfinex/quotes_SOLUSD_20250917
["timestamp","ask_amount","ask_price","bid_price","bid_amount"]
[1758088647447,15.5669488,235.58,235.57,17.84]
[1758088648939,15.5669488,235.58,235.54,17.84]
[1758088649243,15.5669488,235.58,235.57,17.84]
[1758088649441,15.5669488,235.58,235.55,17.84]
[1758088649646,0.71,235.57,235.55,17.84]
[1758088649842,0.71,235.56,235.53,17.84]
[1758088650045,0.71,235.56,235.55,17.84]
[1758088650248,4.95520292,235.56,235.55,17.84]
[1758088650452,15.56821022,235.56,235.53,17.84]
[1758088650754,0.71,235.55,235.52,17.84]
[1758088651062,0.71,235.54,235.51,17.84]
[1758088651276,0.71,235.54,235.53,17.84]
[1758088652365,14.86010274,235.53,235.52,17.84]
[1758088652549,15.57010274,235.53,235.52,17.84]
[1758088652940,4.95574364,235.53,235.5,17.84]
[1758088653145,0.71,235.52,235.5,17.84]
[1758088653365,14.86010274,235.53,235.45,34.84]
[1758088653366,0.71,235.51,235.45,52.68]
[1758088653663,62.08882094,235.53,235.48,17.84]
[1758088653664,0.71,235.5,235.48,17.84]
[1758088653832,0.71,235.49,235.48,17.84]
[1758088654472,15.57262685,235.49,235.46,17.84]
[1758088654859,0.71,235.48,235.46,17.84]
[1758088655065,0.71,235.47,235.44,17.84]
[1758088655246,0.71,235.47,235.4,52.68]
[1758088655436,0.71,235.47,235.43,17.84]
[1758088655639,26.0,235.45,235.38,17.84]
[1758088655860,0.71,235.44,235.4,17.84]
[1758088656163,60.8,235.45,235.4,17.84]
[1758088656164,0.71,235.43,235.4,17.84]
[1758088656335,4.2479079,235.41,235.4,17.84]
[1758088656736,15.57767766,235.41,235.34,18.04]
[1758088656956,15.57767766,235.41,235.38,17.84]
[1758088657165,0.71,235.4,235.36,17.84]
[1758088657477,14.86767766,235.41,235.38,17.84]
[1758088657640,4.2479079,235.41,235.39,0.72]
[1758088657963,10.61853776,235.44,235.4,17.84]
[1758088657964,4.24770485,235.43,235.4,17.84]
[1758088658338,26.0,235.44,235.4,17.84]
[1758088659463,14.86452051,235.46,235.4,18.56]
[1758088659659,14.86452051,235.46,235.42,17.84]
[1758088660363,15.57452051,235.46,235.42,17.84]
[1758088660558,0.71,235.45,235.42,17.84]
[1758088662472,49.58452051,235.46,235.42,17.84]
[1758088662646,50.29452051,235.46,235.42,17.84]
[1758088662850,0.71,235.45,235.42,17.84]
[1758088663049,14.86452051,235.46,235.42,17.84]
[1758088663256,49.56452051,235.46,235.42,17.84]
[1758088663581,26.71,235.46,235.42,17.84]
[1758088663739,79.51091738,235.46,235.45,17.84]
[1758088665860,0.03,235.58,235.48,17.84]
[1758088666072,13.59559401,235.54,235.48,17.84]
[1758088666368,26.0,235.51,235.48,17.84]
[1758088666743,4.2462845,235.5,235.48,17.84]
[1758088667066,4.2462845,235.5,235.48,18.56]
[1758088667273,30.245758,235.53,235.48,17.84]
[1758088667570,4.245758,235.53,235.51,17.84]
[1758088667950,4.245758,235.53,235.51,18.56]
[1758088668487,14.858841,235.55,235.53,17.84]
[1758088669749,14.858841,235.55,235.54,0.72]
[1758088670469,14.858841,235.55,235.53,17.84]
[1758088671760,10.61345786,235.55,235.53,17.84]
[1758088671963,10.61345786,235.55,235.53,18.56]
[1758088672362,10.61345786,235.55,235.53,17.84]
[1758088673151,0.03,235.58,235.57,17.84]
[1758088673372,0.03,235.58,235.57,18.56]
[1758088678978,0.03,235.58,235.57,17.84]
[1758088681885,26.0,235.56,235.37,20.0]
[1758088682178,14.85947184,235.54,235.41,0.66]
[1758088682567,0.71,235.53,235.41,0.66]
[1758088683171,26.0,235.51,235.48,0.06]
[1758088683372,0.71,235.5,235.48,0.06]
[1758088684385,4.2462845,235.5,235.48,0.06]
[1758088685267,14.86199575,235.5,235.46,0.06]
[1758088685469,0.71,235.49,235.46,0.06]
[1758088685667,0.71,235.49,235.4,0.72]
[1758088686085,13.59559401,235.49,235.4,0.72]
[1758088686693,15.57325802,235.48,235.4,0.72]
[1758088687696,36.80648377,235.48,235.4,0.06]
[1758088687896,26.0,235.45,235.4,0.06]
[1758088688272,26.0,235.45,235.4,0.72]
[1758088688470,14.86578321,235.44,235.4,0.72]
[1758088688810,4.24646481,235.49,235.41,0.66]
[1758088688989,10.61691584,235.48,235.41,0.66]
[1758088690466,4.24646481,235.49,235.42,4.83231487]
[1758088690668,10.61523741,235.52,235.43,0.66]
[1758088691281,4.24574364,235.53,235.43,0.66]
[1758088691675,4.24574364,235.53,235.44,4.83231487]
[1758088691886,14.86010274,235.53,235.45,0.66]
[1758088693088,13.59559401,235.57,235.45,0.66]
[1758088693272,0.03,235.58,235.46,4.83231487]
[1758088693472,26.0,235.57,235.47,0.66]
[1758088695680,14.85821022,235.56,235.47,0.66]
[1758088698693,14.85821022,235.56,235.44,34.48]
[1758088698694,0.71,235.55,235.44,0.66]
[1758088698999,14.85947184,235.54,235.44,0.66]
[1758088699205,0.71,235.53,235.44,0.66]
[1758088699902,15.56947184,235.54,235.44,0.66]
[1758088701104,15.56947184,235.54,235.44,4.90733825]
[1758088701276,15.56947184,235.54,235.45,0.66]
[1758088701479,15.56947184,235.54,235.41,0.66]
[1758088703312,15.56947184,235.54,235.45,0.06]
[1758088703827,13.59559401,235.53,235.45,0.06]
[1758088704310,13.59559401,235.51,235.45,0.06]
[1758088704810,0.71,235.5,235.45,0.06]
[1758088705127,0.71,235.49,235.45,0.06]
[1758088705328,4.24649307,235.49,235.45,0.78]
[1758088705703,11.29509727,235.52,235.45,0.78]
[1758088705704,4.2462436,235.51,235.45,0.78]
[1758088706219,0.68,235.52,235.45,0.78]
[1758088706402,15.54075448,235.52,235.45,0.78]
[1758088706893,4.9259447,235.52,235.45,0.78]
[1758088708099,15.54075448,235.52,235.45,0.78]
[1758088708296,15.54075448,235.52,235.45,0.06]
[1758088711819,79.51091738,235.51,235.45,0.06]
[1758088712024,14.86199575,235.5,235.45,0.06]
[1758088712240,0.68,235.49,235.45,0.06]
[1758088713604,26.0,235.46,235.42,0.06]
[1758088713811,26.68,235.48,235.42,0.06]
[1758088714106,4.24682549,235.47,235.42,0.06]
[1758088714327,4.92682549,235.47,235.42,0.06]
[1758088714506,4.24682549,235.47,235.42,0.06]
[1758088714834,4.92682549,235.47,235.42,0.06]
[1758088716628,15.54388923,235.47,235.42,0.06]
[1758088716805,0.68,235.46,235.42,0.06]
[1758088717223,0.68,235.45,235.42,0.06]
[1758088717620,0.68,235.44,235.42,0.06]
[1758088718433,4.24754704,235.43,235.42,0.06]
[1758088718614,4.92683265,235.47,235.42,0.06]
[1758088719012,0.68,235.46,235.42,0.06]
[1758088719627,0.68,235.45,235.42,0.06]
[1758088720236,4.24736663,235.44,235.42,0.06]
[1758088721333,0.68,235.45,235.42,0.06]
[1758088722711,4.92730287,235.45,235.42,0.06]
[1758088722917,15.54526846,235.45,235.42,0.06]
[1758088724027,4.24730287,235.45,235.42,0.78]
[1758088724740,4.24682549,235.47,235.42,0.06]
[1758088724969,26.68,235.48,235.42,0.06]
[1758088725248,0.68,235.46,235.42,0.06]
[1758088725542,40.86328081,235.48,235.42,0.06]
[1758088725743,0.68,235.47,235.42,0.06]
[1758088725928,0.68,235.46,235.42,0.06]
[1758088726723,4.92713713,235.46,235.42,0.06]
[1758088726921,4.24713713,235.46,235.42,0.06]
[1758088727150,0.68,235.45,235.42,0.06]
[1758088727522,0.68,235.44,235.42,0.06]
[1758088728631,14.86465178,235.46,235.42,0.06]
[1758088728839,0.68,235.45,235.42,0.06]
[1758088729543,0.68,235.44,235.42,0.06]
[1758088730225,4.24754704,235.43,235.42,0.06]
[1758088731445,83.75820288,235.45,235.42,0.06]
[1758088731820,84.43820288,235.45,235.42,0.06]
[1758088732740,0.03,235.49,235.43,0.72]
[1758088733441,4.27646969,235.49,235.43,0.72]
[1758088738644,0.69,235.48,235.42,0.06]
[1758088739031,4.24682549,235.47,235.42,0.06]
[1758088739230,4.24682549,235.47,235.42,0.75]
[1758088739951,0.69,235.46,235.42,0.06]
[1758088740131,14.86388923,235.47,235.42,0.06]
[1758088740331,0.69,235.45,235.42,0.06]
[1758088740741,0.69,235.44,235.42,0.06]
[1758088741160,4.24754704,235.43,235.42,0.06]
[1758088741657,4.93754704,235.43,235.42,0.06]
[1758088743060,14.86388923,235.47,235.42,0.06]
[1758088743235,0.69,235.45,235.42,0.06]
[1758088743634,0.69,235.44,235.42,0.06]
[1758088744055,0.69,235.43,235.42,0.06]
[1758088744261,0.69,235.44,235.42,0.06]
[1758088745350,0.69,235.43,235.42,0.06]
[1758088745546,14.28559401,235.46,235.42,0.06]
[1758088746060,15.55515182,235.45,235.42,0.06]
[1758088746656,0.69,235.44,235.42,0.06]
[1758088747057,0.69,235.43,235.42,0.06]
[1758088747940,4.93754704,235.43,235.42,0.06]
[1758088750362,11.30796559,235.45,235.42,0.06]
[1758088750556,0.69,235.44,235.42,0.06]
[1758088750974,10.61796559,235.45,235.42,0.06]
[1758088750975,0.69,235.43,235.42,0.06]
[1758088751444,0.69,235.43,235.42,1e-08]
[1758088752562,4.93754704,235.43,235.42,1e-08]
[1758088757566,18.53314105,235.43,235.42,1e-08]
[1758088760363,29.15200865,235.43,235.4,0.06]
[1758088761052,39.59559401,235.41,235.39,0.06]
[1758088761247,135.94808836,235.4,235.39,1e-08]
[1758088761649,52.89368237,235.4,235.39,1e-08]
[1758088762366,53.17800551,235.4,235.39,1e-08]
[1758088762552,39.59559401,235.38,235.37,1e-08]
[1758088762951,40.28559401,235.38,235.37,1e-08]
[1758088763260,13.59559401,235.37,235.3,0.69]
[1758088763960,26.0,235.34,235.28,0.69]
[1758088765051,0.69,235.33,235.26,0.06]
[1758088765272,14.87336392,235.32,235.28,0.69]
[1758088765763,14.87336392,235.32,235.27,0.72]
[1758088766086,14.87336392,235.32,235.28,0.72]
[1758088767474,14.87336392,235.32,235.29,0.72]
[1758088767775,26.0,235.3,235.27,0.72]
[1758088767952,26.0,235.3,235.26,0.06]
[1758088768156,26.0,235.3,235.28,0.72]
[1758088768354,4.24953255,235.32,235.29,0.72]
[1758088768778,30.24953255,235.32,235.29,0.72]
[1758088770170,10.62253954,235.35,235.29,0.72]
[1758088770171,14.8715304,235.35,235.29,0.72]
[1758088770354,40.8715304,235.35,235.29,0.72]
[1758088771057,8.11077144,235.42,235.29,0.72]
[1758088771058,4.24874625,235.37,235.29,0.72]
[1758088771788,4.24874625,235.37,235.29,4.97004848]
[1758088771955,4.24874625,235.37,235.3,0.72]
[1758088772376,14.87032079,235.37,235.3,0.72]
[1758088772966,4.24840345,235.39,235.3,4.96982878]
[1758088773169,4.24840345,235.39,235.31,0.72]
[1758088773170,28.46466953,235.39,235.31,0.72]
[1758088774291,29.15466953,235.39,235.31,0.72]
[1758088775575,13.59559401,235.38,235.31,0.72]
[1758088775968,0.69,235.37,235.29,0.72]
[1758088776281,14.87083616,235.36,235.29,0.72]
[1758088778089,0.69,235.35,235.26,0.06]
[1758088778272,0.69,235.35,235.27,0.72]
[1758088778897,131.7,235.34,235.27,0.72]
[1758088779191,14.28559401,235.33,235.26,0.06]
[1758088779575,26.0,235.33,235.29,0.06]
[1758088779889,4.24953255,235.32,235.29,0.06]
[1758088780472,14.87336392,235.32,235.29,0.06]
[1758088780771,0.69,235.31,235.29,0.06]
[1758088781894,4.24989375,235.3,235.29,0.06]
[1758088784196,0.69,235.3,235.29,0.06]
[1758088784497,26.69,235.3,235.29,0.06]
[1758088785381,30.24989375,235.3,235.29,0.06]
[1758088787005,30.24989375,235.3,235.29,0.78]
[1758088787793,30.24989375,235.3,235.29,0.06]
[1758088789295,26.0,235.31,235.29,0.06]
[1758088789682,4.2497509,235.31,235.29,0.06]
[1758088789892,4.24881033,235.36,235.3,0.72]
[1758088791080,15.56083616,235.36,235.29,0.06]
[1758088791897,26.03,235.37,235.3,0.72]
[1758088792410,30.27869887,235.37,235.3,0.72]
[1758088794602,26.03,235.37,235.3,0.72]
[1758088794822,30.27864278,235.37,235.3,0.72]
[1758088795599,0.72,235.36,235.29,0.06]
[1758088796802,4.24899086,235.35,235.29,0.06]
[1758088797003,14.87146802,235.35,235.29,0.06]
[1758088797182,15.59146802,235.35,235.29,0.06]
[1758088797389,4.96899086,235.35,235.29,0.78]
[1758088797908,4.24899086,235.35,235.29,0.78]
[1758088799003,4.96881033,235.36,235.29,0.78]
[1758088799204,15.59083616,235.36,235.29,0.78]
[1758088799708,15.59083616,235.36,235.29,0.06]
[1758088800791,26.0,235.33,235.29,0.06]
[1758088800993,4.24953255,235.32,235.29,0.06]
[1758088801194,15.59336392,235.32,235.29,0.06]
[1758088801395,0.72,235.32,235.29,0.06]
[1758088801597,30.24936223,235.33,235.29,0.06]
[1758088802010,26.0,235.33,235.29,0.78]
[1758088802199,30.24938054,235.33,235.29,0.78]
[1758088802402,26.0,235.33,235.29,0.78]
[1758088803214,0.03,235.37,235.29,0.06]
[1758088803423,30.99864545,235.37,235.3,0.72]
[1758088803806,26.75,235.37,235.3,0.72]
[1758088804011,30.99863493,235.37,235.3,0.72]
[1758088804211,30.99866575,235.37,235.3,0.72]
[1758088804599,26.75,235.37,235.3,0.72]
[1758088804915,30.99863991,235.37,235.3,0.72]
[1758088805113,26.75,235.37,235.3,0.72]
[1758088805318,0.72,235.36,235.3,0.72]
[1758088805904,26.0,235.36,235.3,0.72]
[1758088806128,0.03,235.37,235.32,2.05140772]
[1758088806431,0.03,235.37,235.3,7.02129242]
[1758088806717,0.03,235.37,235.31,0.72]
[1758088807830,0.03,235.37,235.31,4.96960972]
[1758088808128,0.03,235.37,235.32,34.22]
[1758088808293,0.03,235.37,235.32,34.94]
[1758088808496,0.03,235.37,235.33,0.72]
[1758088809019,0.03,235.37,235.33,4.96930884]
[1758088809226,0.03,235.37,235.35,2.05140772]
[1758088809403,0.03,235.4,235.36,2.05140772]
[1758088809920,0.03,235.4,235.37,0.72]
[1758088810796,0.03,235.4,235.36,0.72]
[1758088811117,0.03,235.4,235.36,34.92]
[1758088811329,0.03,235.4,235.31,2.33573086]
[1758088811330,0.03,235.4,235.31,4.24955869]
[1758088811625,0.75,235.4,235.33,0.72]
[1758088811788,0.03,235.4,235.33,0.72]
[1758088812721,0.72,235.39,235.3,4.9683507]
[1758088812927,26.72,235.38,235.3,0.72]
[1758088813231,4.24862981,235.37,235.3,34.92]
[1758088813402,14.87020435,235.37,235.3,34.92]
[1758088813793,0.72,235.36,235.29,0.06]
[1758088814609,13.59559401,235.35,235.29,0.06]
[1758088814801,0.72,235.34,235.29,0.06]
[1758088814995,14.87020435,235.37,235.29,0.06]
[1758088814996,0.72,235.33,235.29,0.06]
[1758088815226,26.0,235.36,235.3,0.72]
[1758088815532,26.03,235.36,235.3,0.72]
[1758088815701,0.03,235.36,235.3,0.72]
[1758088816710,0.03,235.36,235.29,4.31003327]
[1758088816711,0.75,235.36,235.29,0.06]
[1758088816919,0.75,235.36,235.29,0.78]
[1758088817830,4.24899086,235.35,235.29,0.78]
[1758088818533,14.87146802,235.35,235.29,0.78]
[1758088818831,15.59146802,235.35,235.29,0.06]
[1758088819907,26.0,235.34,235.29,0.06]
[1758088820106,26.0,235.34,235.3,0.72]
[1758088820514,0.72,235.33,235.29,0.06]
[1758088821033,26.0,235.34,235.29,0.06]
[1758088821217,26.0,235.34,235.29,0.78]
[1758088821404,26.72,235.34,235.29,0.06]
[1758088821912,4.24935197,235.33,235.29,0.06]
[1758088822240,0.72,235.34,235.29,0.78]
[1758088822617,4.9691949,235.34,235.29,0.06]
[1758088822844,4.2491949,235.34,235.29,0.06]
[1758088823043,0.72,235.33,235.29,0.06]
[1758088823237,0.72,235.32,235.29,0.06]
[1758088823733,4.24919852,235.34,235.29,0.06]
[1758088823734,4.96919852,235.34,235.29,0.06]
[1758088824236,13.59559401,235.32,235.29,0.06]
[1758088824932,26.0,235.3,235.29,0.06]
[1758088825235,39.59559401,235.3,235.29,1e-08]
[1758088825438,40.25559401,235.3,235.29,1e-08]
[1758088826041,44.50548776,235.3,235.29,1e-08]
[1758088829241,44.7898109,235.3,235.29,1e-08]
[1758088830020,39.59559401,235.27,235.26,1e-08]
[1758088830219,44.13035281,235.27,235.26,1e-08]
[1758088830423,30.25043566,235.27,235.26,1e-08]
[1758088833029,4.25043566,235.27,235.26,0.66000001]
[1758088833236,30.25043566,235.27,235.26,0.66000001]
[1758088833650,30.25043566,235.27,235.26,1e-08]
[1758088834343,30.91043566,235.27,235.26,1e-08]
[1758088834732,30.25043566,235.27,235.26,1e-08]
[1758088835441,0.28432314,235.33,235.26,0.66000001]
[1758088835442,10.62342516,235.33,235.26,0.66000001]
[1758088835644,36.62342516,235.33,235.26,0.66000001]
[1758088835847,26.0,235.33,235.26,0.66000001]
[1758088836156,13.62559401,235.36,235.26,0.66000001]
[1758088836338,4.27885075,235.36,235.27,2.05140772]
[1758088836657,26.0,235.35,235.28,0.66]
[1758088838849,15.53209993,235.34,235.26,0.66000001]
[1758088840956,13.59559401,235.33,235.26,0.66000001]
[1758088841552,14.87336392,235.32,235.26,0.66000001]
[1758088841751,4.24953255,235.32,235.26,0.66000001]
[1758088842649,4.24917141,235.34,235.26,0.66000001]
[1758088843558,0.66,235.33,235.26,0.66000001]
[1758088844143,13.59559401,235.32,235.26,1e-08]
[1758088844535,0.66,235.33,235.26,0.66000001]
[1758088844766,4.24953255,235.32,235.26,0.66000001]
[1758088846335,0.66,235.31,235.26,1e-08]
[1758088846941,0.66,235.31,235.26,0.66000001]
[1758088847576,14.87336392,235.32,235.26,0.66000001]
[1758088849368,4.24953255,235.32,235.26,0.66000001]
[1758088850363,4.27953255,235.32,235.26,0.66000001]
[1758088851359,4.27953255,235.32,235.26,4.91059556]
[1758088851553,0.03,235.32,235.27,0.66]
[1758088855478,0.03,235.32,235.27,4.91039769]
[1758088855980,0.03,235.32,235.28,0.68]
[1758088856553,0.03,235.32,235.27,34.06]
[1758088856554,0.74,235.32,235.27,34.06]
[1758088856771,4.24971314,235.31,235.27,34.06]
[1758088856981,0.03,235.32,235.28,0.68]
[1758088857377,0.03,235.32,235.27,34.06]
[1758088857683,4.27957627,235.32,235.29,0.68]
[1758088858078,4.27957627,235.32,235.27,34.74]
[1758088858283,4.27957627,235.32,235.28,0.68]
[1758088858477,4.27957627,235.32,235.29,0.68]
[1758088858670,0.03,235.32,235.3,0.68]
[1758088859770,0.03,235.32,235.31,0.68]
[1758088860094,0.03,235.32,235.28,0.68]
[1758088860268,0.03,235.32,235.27,34.74]
[1758088860475,0.03,235.32,235.28,0.68]
[1758088860994,0.03,235.32,235.26,1e-08]
[1758088860995,0.71,235.31,235.26,1e-08]
[1758088861168,26.0,235.28,235.26,1e-08]
[1758088861989,26.71,235.28,235.26,1e-08]
[1758088862196,131.7,235.31,235.26,0.68000001]
[1758088862393,157.7,235.31,235.27,0.68]
[1758088862974,4.95989375,235.3,235.26,1e-08]
[1758088863488,0.71,235.29,235.26,1e-08]
[1758088863702,4.24989375,235.3,235.26,0.68000001]
[1758088863913,4.24989375,235.3,235.27,0.68]
[1758088864286,4.24989375,235.3,235.26,1e-08]
[1758088864486,4.24989375,235.3,235.26,0.68000001]
[1758088864795,30.27957301,235.32,235.27,0.68]
[1758088865181,0.03,235.32,235.27,0.68]
[1758088865390,0.03,235.32,235.27,4.93042567]
[1758088865787,0.03,235.32,235.28,0.68]
[1758088865990,0.03,235.32,235.29,34.04]
[1758088866511,0.03,235.32,235.3,0.68]
[1758088866901,0.03,235.32,235.31,0.68]
[1758088868597,0.03,235.32,235.31,1.99276602]
[1758088869198,0.03,235.32,235.31,2.27708916]
[1758088872815,0.03,235.32,235.31,2.70206047]
[1758088872988,0.03,235.32,235.31,42.29765448]
[1758088873191,0.03,235.32,235.31,42.79765448]
[1758088875503,0.03,235.32,235.31,16.79765448]
[1758088875807,0.03,235.32,235.31,18.49931147]
[1758088877091,0.03,235.36,235.35,0.28432314]
[1758088877296,0.03,235.36,235.35,49.59758225]
[1758088877492,0.03,235.37,235.35,49.59758225]
[1758088877493,1e-08,235.37,235.36,13.87991715]
[1758088877684,1e-08,235.37,235.36,15.87268317]
[1758088878997,1e-08,235.37,235.36,20.1214935]
[1758088881006,1e-08,235.37,235.36,54.0814935]
[1758088883517,1e-08,235.4,235.39,39.59559401]
[1758088883718,1e-08,235.4,235.39,75.57751005]
[1758088883900,1e-08,235.4,235.39,74.94474403]
[1758088884100,1e-08,235.4,235.39,76.25751005]
[1758088884309,1e-08,235.4,235.39,77.95851577]
[1758088884617,1e-08,235.4,235.39,44.80818598]
[1758088884819,1e-08,235.4,235.39,80.080952]
[1758088885198,1e-08,235.4,235.39,78.76818598]
[1758088885420,1e-08,235.4,235.39,80.080952]
[1758088885724,1e-08,235.4,235.39,80.50577888]
[1758088886800,1e-08,235.4,235.39,46.54577888]
[1758088886997,1e-08,235.4,235.39,46.100952]
[1758088887207,1e-08,235.4,235.39,80.040952]
[1758088887617,1e-08,235.4,235.39,80.46577888]
[1758088888200,1e-08,235.4,235.39,80.040952]
[1758088889137,0.03,235.45,235.4,15.19268317]
[1758088889412,0.03,235.45,235.4,49.79268317]
[1758088889617,0.03,235.45,235.4,15.85268317]
[1758088889834,0.03,235.45,235.4,49.79268317]
[1758088890706,0.03,235.45,235.4,15.19268317]
[1758088890899,0.69,235.45,235.4,15.19268317]
[1758088891209,0.69,235.45,235.4,49.11268317]
[1758088891548,0.69,235.45,235.4,49.77268317]
[1758088891843,0.69,235.45,235.4,15.19268317]
[1758088892422,0.66,235.43,235.4,35.23276602]
[1758088892605,0.66,235.43,235.4,35.51708916]
[1758088892811,0.66,235.43,235.4,35.37492759]
[1758088893019,0.66,235.43,235.4,61.23276602]
[1758088893415,0.66,235.43,235.4,60.20432314]
[1758088893613,0.69,235.41,235.36,1.76129511]
[1758088893836,0.03,235.41,235.36,0.06]
[1758088894143,0.03,235.41,235.37,33.92]
[1758088894144,0.66,235.4,235.37,33.92]
[1758088894442,0.66,235.39,235.37,33.92]
[1758088894641,0.66,235.38,235.37,33.92]
[1758088895233,0.66,235.38,235.36,0.06]
[1758088895431,0.66,235.38,235.37,33.92]
[1758088896921,0.66,235.38,235.36,0.06]
[1758088896922,4.24862981,235.37,235.36,0.06]
[1758088897126,4.24862981,235.37,235.36,33.98]
[1758088897331,4.90862981,235.37,235.36,33.98]
[1758088898212,4.90862981,235.37,235.36,0.06]
[1758088898940,18.50422382,235.37,235.36,0.06]
[1758088899613,18.50422382,235.37,235.33,0.06]
[1758088899811,39.59559401,235.34,235.33,0.06]
[1758088900208,40.25559401,235.34,235.33,0.06]
[1758088900844,44.50476542,235.34,235.33,0.06]
[1758088903835,13.59559401,235.33,235.31,0.06]
[1758088904144,13.59559401,235.33,235.31,1e-08]
[1758088904341,0.66,235.32,235.31,1e-08]
[1758088904716,4.90953255,235.32,235.31,1e-08]
[1758088906737,18.7894497,235.32,235.31,1e-08]
[1758088907257,22.89314388,235.32,235.31,1e-08]
[1758088909444,22.89314388,235.32,235.3,1e-08]
[1758088909646,4.10369418,235.31,235.3,1e-08]
[1758088910047,4.76369418,235.31,235.3,1e-08]
[1758088917329,4.24953255,235.32,235.3,1e-08]
[1758088917552,2.05184709,235.31,235.3,1e-08]
[1758088917851,28.05184709,235.31,235.3,1e-08]
[1758088918056,2.05184709,235.31,235.3,1e-08]
[1758088919664,26.0,235.31,235.3,0.66000001]
[1758088919850,28.05184709,235.31,235.3,0.66000001]
[1758088920148,26.0,235.31,235.3,0.66000001]
[1758088920368,4.24928378,235.34,235.3,0.66000001]
[1758088920548,13.59559401,235.38,235.3,0.66000001]
[1758088920724,2.05184709,235.33,235.3,0.66000001]
[1758088920924,26.0,235.36,235.3,0.66000001]
[1758088921125,13.59559401,235.39,235.3,0.66000001]
[1758088921339,2.05184709,235.35,235.3,0.66000001]
[1758088921544,2.05184709,235.32,235.3,0.66000001]
[1758088922338,0.03,235.32,235.3,0.66000001]
[1758088923734,0.03,235.32,235.3,4.90987139]
[1758088923936,1.61184709,235.35,235.3,0.66000001]
[1758088924350,2.05184709,235.34,235.3,0.66000001]
[1758088924833,2.05184709,235.33,235.3,0.66000001]
[1758088925039,2.05184709,235.33,235.3,1e-08]
[1758088925040,2.05184709,235.31,235.3,1e-08]
[1758088925452,2.05184709,235.31,235.3,0.66000001]
[1758088926361,2.05184709,235.31,235.3,1e-08]
[1758088928368,26.0,235.34,235.3,0.66000001]
[1758088928672,2.05184709,235.32,235.3,0.66000001]
[1758088929060,26.0,235.33,235.31,0.66]
[1758088929251,2.05184709,235.32,235.31,0.66]
[1758088929442,2.05184709,235.32,235.3,1e-08]
[1758088929952,2.05184709,235.32,235.31,0.66]
[1758088931353,4.24938092,235.33,235.31,0.66]
[1758088931553,2.05184709,235.32,235.31,0.66]
[1758088931866,2.05184709,235.32,235.3,1e-08]
[1758088932052,2.05184709,235.31,235.3,1e-08]
[1758088933759,6.30156023,235.31,235.3,1e-08]
[1758088937344,6.97156023,235.31,235.3,1e-08]
[1758088937564,6.30156023,235.31,235.3,1e-08]
[1758088938662,2.05184709,235.33,235.3,0.66000001]
[1758088938861,4.24910665,235.35,235.3,0.66000001]
[1758088939089,2.05184709,235.33,235.3,0.66000001]
[1758088939575,2.05184709,235.34,235.3,0.66000001]
[1758088940474,2.05184709,235.33,235.3,1e-08]
[1758088940652,2.05184709,235.31,235.3,1e-08]
[1758088941570,6.30156023,235.31,235.3,1e-08]
[1758088942849,9.02340732,235.31,235.3,1e-08]
[1758088943170,48.61900133,235.31,235.3,1e-08]